{"text_format":"1","workbook":"xlsx","n_sheets":5,"sheets":["Cross Overs","Instructions","Crossover Tool","Troubleshooting Guide","Sheet2"],"not_rendered":{"charts":0,"images":8,"macros":1,"external_links":0,"defined_names":3,"comments":0,"pivot_tables":2},"unopened":[],"bounds":{"document_bytes":16777216,"sheet_cells":100000,"rows_first":2000,"rows_last":500,"rows_between":2000,"halvings":0,"cell_chars":16384,"cell_head_chars":4096},"cells_cut":0,"cells_raw":0,"read":"whole","date_system":"1900"}

{"sheet":"Cross Overs","index":0,"n_rows":45,"n_cols":18,"rows_kept":45,"cut":false,"hidden":true,"merged":[[2,8,2,9],[11,1,11,10],[12,8,12,9],[21,1,21,10],[22,8,22,9]]}
[]
[null,"LA4 Series"]
[null,"Lumen Package","CCT","Voltage","CRI","Driver","Rough In Option","Beam","Finish",null,"Trim Options",null,"Cross Over?","No"]
[null,"08LM","27K",120,80,"ECOD","F","SP","BD","PTD","PF"]
[null,"13LM","30K",277,90,"ZT","CP","NFL","BS","PTS",null,null,"Sum of Shipments DSP","Column Labels"]
[null,"15LM","35K",347,"SPW","EZ1","BR","FLD","CD","WH",null,null,"Row Labels","LA4","LA6","LA8","Grand Total"]
[null,"17LM","40K",null,null,"EZB","BR20C",null,"CS","WTD",null,null,"FY21",1387.4123,48762.782599999999,16834.98,66985.174899999998]
[null,"23LM",null,null,null,null,"NL",null,"CSS","WTS",null,null,"Housing",280.22000000000003,43969.203499999996,13749.75,57999.173499999997]
[null,"28LM",null,null,null,null,"NLTAIR2",null,"GD",null,null,null,"Trim",1107.1922999999999,4793.5790999999999,3085.2299999999996,8986.0013999999992]
[null,"33LM",null,null,null,null,"AE2CD",null,"GS",null,null,null,"FY22",8485.0087999999996,94088.941800000001,18335.150000000001,120909.10060000001,{"$f":"Q10/498650.01","v":0.24247287310793397}]
[null,null,null,null,null,null,null,null,null,null,null,null,"Housing",4887.22,85067.048500000004,15803.15,105757.4185]
[null,"LA6 Series",null,null,null,null,null,null,null,null,null,null,"Trim",3597.7888000000003,9021.8932999999997,2532,15151.6821]
[null,"Lumen Package","CCT","Voltage","CRI","Driver","Rough In Option","Beam","Finish",null,"Trim Options",null,"FY23",4851.2132000000001,18863.580000000002,310.39999999999998,24025.193200000002,{"$f":"Q13/124552.19","v":0.19289257940787713}]
[null,"08LM","27K",120,80,"ECOD","F","SP","BD","PTD","PF",null,"Housing",2133.9699999999998,16689.91,310.39999999999998,19134.280000000002]
[null,"13LM","30K",277,90,"ZT","CP","NFL","BS","PTS",null,null,"Trim",2717.2431999999999,2173.67,null,4890.9132]
[null,"15LM","35K",347,"SPW","EZ1","BR","FLD","CD","WH",null,null,"FY24",2167.1,8884.9,615.70000000000005,11667.7]
[null,"17LM","40K",null,null,"EZB","BR20C",null,"CS","WTD",null,null,"Housing",null,8884.9,615.70000000000005,9500.6]
[null,"23LM",null,null,null,null,"NL",null,"CSS","WTS",null,null,"Trim",2167.1,null,null,2167.1]
[null,"28LM",null,null,null,null,"NLTAIR2",null,"GD",null,null,null,"Cross Over?","No"]
[null,"33LM",null,null,null,null,"AE2CD",null,"GS"]
[null,null,null,null,null,null,null,null,null,null,null,null,"Sum of Quantity","Column Labels"]
[null,"LA8 Series",null,null,null,null,null,null,null,null,null,null,"Row Labels","LA4","LA6","LA8","Grand Total"]
[null,"Lumen Package","CCT","Voltage","CRI","Driver","Rough In Option","Beam","Finish",null,"Trim Options",null,"FY21",34,340,90,464]
[null,"08LM","27K",120,80,"ECOD","F","SP","BD","PTD","PF",null,"Housing",1,221,37,259]
[null,"13LM","30K",277,90,"ZT","CP","NFL","BS","PTS",null,null,"Trim",33,119,53,205]
[null,"15LM","35K",347,"SPW","EZ1","BR","FLD","CD","WH",null,null,"FY22",105,523,95,723]
[null,"17LM","40K",null,null,"EZB","BR20C",null,"CS","WTD",null,null,"Housing",16,339,55,410]
[null,"23LM",null,null,null,null,"NL",null,"CSS","WTS",null,null,"Trim",89,184,40,313]
[null,"28LM",null,null,null,null,"NLTAIR2",null,"GD",null,null,null,"FY23",61,107,1,169]
[null,"33LM",null,null,null,null,"AE2CD",null,"GS",null,null,null,"Housing",7,67,1,75]
[null,null,null,null,null,null,null,null,null,null,null,null,"Trim",54,40,null,94]
[null,null,null,null,null,null,null,null,null,null,null,null,"FY24",42,22,2,66]
[null,null,null,null,null,null,null,null,null,null,null,null,"Housing",null,22,2,24]
[null,null,null,null,null,null,null,null,null,null,null,null,"Trim",42,null,null,42]
[]
[null,null,null,null,null,null,null,null,null,null,null,null,null,"LA4","LA6","LA8"]
[null,null,null,null,null,null,null,null,null,null,null,null,"FY21",{"$f":"SUM(N38:N39)","v":10668.223581818182},{"$f":"SUM(O38:O39)","v":81340.868747252738},38684.407649158595,{"$f":"SUM(N37:P37)","v":130693.49997822952},{"$f":"Q37/247759.57","v":0.52750131903372899}]
[null,null,null,null,null,null,null,null,null,null,null,null,"Housing",{"$f":"N8+(N8/N24)*N25","v":9527.48},{"$f":"O8+(O8/O24)*O25","v":67644.928461538453},{"$f":"P8+(P8/P24)*P25","v":33445.33783783784}]
[null,null,null,null,null,null,null,null,null,null,null,null,"Trim",{"$f":"N9+(N9/N25)*N24","v":1140.7435818181818},{"$f":"O9+(O9/O25)*O24","v":13695.940285714285},{"$f":"P9+(P9/P25)*P24","v":5239.0698113207545}]
[null,null,null,null,null,null,null,null,null,null,null,null,"FY22",{"$f":"SUM(N41:N42)","v":36316.963542134836},{"$f":"SUM(O41:O42)","v":156882.88488620784},33309.85,{"$f":"SUM(N40:P40)","v":226509.69842834267},{"$f":"Q40/498650.01","v":0.45424585157101005}]
[null,null,null,null,null,null,null,null,null,null,null,null,"Housing",{"$f":"N11+(N11/N27)*N28","v":32072.381250000002},{"$f":"O11+(O11/O27)*O28","v":131239.13382153393},{"$f":"P11+(P11/P27)*P28","v":27296.35}]
[null,null,null,null,null,null,null,null,null,null,null,null,"Trim",{"$f":"N12+(N12/N28)*N27","v":4244.5822921348317},{"$f":"O12+(O12/O28)*O27","v":25643.751064673914},{"$f":"P12+(P12/P28)*P27","v":6013.5}]
[null,null,null,null,null,null,null,null,null,null,null,null,"FY23",{"$f":"SUM(N44:N45)","v":21665.502715343915},{"$f":"SUM(O44:O45)","v":32468.602623134328},373.7,54507.80533847824,{"$f":"Q43/124552.19","v":0.43763024430544528}]
[null,null,null,null,null,null,null,null,null,null,null,null,"Housing",{"$f":"N14+(N14/N30)*N31","v":18596.024285714284},{"$f":"O14+(O14/O30)*O31","v":26654.035373134328},{"$f":"P14+(P14/P30)*P31","v":310.39999999999998}]
[null,null,null,null,null,null,null,null,null,null,null,null,"Trim",{"$f":"N15+(N15/N31)*N30","v":3069.4784296296293},{"$f":"O15+(O15/O31)*O30","v":5814.5672500000001},{"$f":"P15+(P12/P28)*P30","v":63.3}]

{"sheet":"Instructions","index":1,"n_rows":10,"n_cols":3,"rows_kept":10,"cut":false,"hidden":false,"merged":[]}
[]
[null,"1)","Click the \"Get Started\" button on the \"Cross Over Tool\" tab"]
[]
[null,"2)","Enter in the fixture nomenclature from the spec sheet OR the breakout lines for the fixture"]
[]
[null,"3)","Click the \"Cross Over Nomenclature\" button"]
[]
[null,"4)","Check to make sure there were no errors , view \"Troubleshooting Guide\" tab for better understanding of issues"]
[]
[null,"5)","Get cross over nomenclature from the display, and enter in agile to confirm order options"]

{"sheet":"Crossover Tool","index":2,"n_rows":0,"n_cols":0,"rows_kept":0,"cut":false,"hidden":false,"merged":[]}

{"sheet":"Troubleshooting Guide","index":3,"n_rows":13,"n_cols":4,"rows_kept":13,"cut":false,"hidden":false,"merged":[]}
[]
[]
[null,null,"Error Type","Reason & Resolution"]
[null,null,"Error: No Indy Nomenclature Entered","User form entries are blank. Enter in Indy fixture nomenclature or Indy breakout lines"]
[null,null,"Error: Incomplete Indy Nomenclature Entered","Only one entry of Indy Housing nomenclature or Indy Trim nomenclature was inputted. Both are required."]
[null,null,"Error: Trim Series and Housing Series do not match","The Indy Housing series entered does not match the Indy Trim series entered."]
[null,null,"Error: Breakout lines are incomplete and/or may conflict with Master Line","Nomenclature was entered both in the master line and the breakout lines. Enter either the master line OR the breakout lines."]
[null,null,"Error: Aperture Size is incorrect","The aperture size entered for the series is not a valid offering. See website for available offerings."]
[null,null,"Error: Series entered is not discontinued. Refer to spec sheets for available options","The series entered is not a discontinued product and does not need to be crossed over. See spec sheet on the website for available options"]
[null,null,"Error: Series entered could not be identified. Please Verify Nomenclature","The series entered could not be identified in this cross over tool. Double check the first nomenclature entered."]
[null,null,"Error: Invalid Order Option:","The nomenclature entered is not a valid ordering option. Review spec sheet on website for available offerings"]
[null,null,"Contact Customer Support for alternative options regarding:","The option inputted does not have a cross over for that series. Contact customer support for assistance."]
[null,null,"Error: Missing Required Entry in Nomenclature:","A required nomenclature string is missing. Review spec sheet on website for required offerings"]

{"sheet":"Sheet2","index":4,"n_rows":65,"n_cols":19,"rows_kept":65,"cut":false,"hidden":true,"merged":[]}
[]
[null,null,null,null,null,"LRT6",null,null,null,null,"LRT8-10",null,null,null,null,"LRT12"]
[null,null,null,null,null,"Series","LRT","LBR","LDNRV",null,"Series","LRT","LBR","LDNRV",null,"Series","LRT","LBR","LDNRV"]
[null,1,"Series",null,null,"Lumen Package (Required)","08LM","07LM","05",null,"Lumen Package (Required)","08LM","07LM","05",null,"Lumen Package (Required)","08LM","07LM","n / a"]
[null,2,"Lumen Package (Required)",null,null,"Lumen Package (Required)","13LM","10LM","10",null,"Lumen Package (Required)","13LM","10LM","10",null,"Lumen Package (Required)","13LM","10LM","n / a"]
[null,3,"CCT (Required)",null,null,"Lumen Package (Required)","15LM","10LM","15",null,"Lumen Package (Required)","15LM","10LM","15",null,"Lumen Package (Required)","15LM","10LM","n / a"]
[null,4,"Voltage (Required)",null,null,"Lumen Package (Required)","17LM","15LM","20",null,"Lumen Package (Required)","17LM","15LM","20",null,"Lumen Package (Required)","17LM","15LM","n / a"]
[null,5,"Generation (Required)",null,null,"Lumen Package (Required)","23LM","15LM","25",null,"Lumen Package (Required)","23LM","15LM","25",null,"Lumen Package (Required)","23LM","15LM","n / a"]
[null,6,"CRI (Required)",null,null,"Lumen Package (Required)","28LM","20LM","30",null,"Lumen Package (Required)","28LM","20LM","30",null,"Lumen Package (Required)","28LM","20LM","n / a"]
[null,7,"Driver (Required)",null,null,"Lumen Package (Required)","33LM","20LM","30",null,"Lumen Package (Required)","33LM","20LM","30",null,"Lumen Package (Required)","33LM","20LM","n / a"]
[null,8,"Fusing Option",null,null,"Lumen Package (Required)","40LM","25LM","40",null,"Lumen Package (Required)","40LM","25LM","40",null,"Lumen Package (Required)","40LM","25LM","n / a"]
[null,9,"Territory Option",null,null,"Lumen Package (Required)","45LM","25LM","50",null,"Lumen Package (Required)","45LM","25LM","50",null,"Lumen Package (Required)","45LM","25LM","n / a"]
[null,10,"Emergency Battery Pack Option",null,null,"Lumen Package (Required)","50LM","30LM","50",null,"Lumen Package (Required)","50LM","30LM","50",null,"Lumen Package (Required)","50LM","30LM","n / a"]
[null,11,"Controls Option",null,null,"Lumen Package (Required)","55LM","40LM","60",null,"Lumen Package (Required)","55LM","40LM","60",null,"Lumen Package (Required)","55LM","40LM","n / a"]
[null,12,"Socket Adapter Option",null,null,"Lumen Package (Required)","60LM","45LM","60",null,"Lumen Package (Required)","60LM","45LM","60",null,"Lumen Package (Required)","60LM","45LM","n / a"]
[null,13,"Atrius Enabled Option",null,null,"Lumen Package (Required)","65LM","50LM","80",null,"Lumen Package (Required)","65LM","50LM","80",null,"Lumen Package (Required)","65LM","50LM","n / a"]
[null,14,"Trim Style (Required)",null,null,"Lumen Package (Required)","70LM","n / a","n / a",null,"Lumen Package (Required)","70LM","n / a","80",null,"Lumen Package (Required)","70LM","n / a","n / a"]
[null,15,"Trim Finish (Required)",null,null,"Lumen Package (Required)","75LM","n / a","n / a",null,"Lumen Package (Required)","75LM","n / a","80",null,"Lumen Package (Required)","75LM","n / a","n / a"]
[null,16,"Trim Option 1",null,null,"Lumen Package (Required)","80LM","n / a","n / a",null,"Lumen Package (Required)","80LM","n / a","80",null,"Lumen Package (Required)","80LM","n / a","n / a"]
[null,17,"Trim Option 2",null,null,"Lumen Package (Required)","85LM","n / a","n / a",null,"Lumen Package (Required)","85LM","n / a","100",null,"Lumen Package (Required)","85LM","n / a","n / a"]
[null,null,null,null,null,"Lumen Package (Required)","90LM","n / a","n / a",null,"Lumen Package (Required)","90LM","n / a",120,null,"Lumen Package (Required)","90LM","n / a","n / a"]
[null,null,null,null,null,"Generation (Required)","G4",{"$f":"\"\"","v":""},{"$f":"\"\"","v":""},null,"Generation (Required)","G4",{"$f":"\"\"","v":""},{"$f":"\"\"","v":""},null,"Generation (Required)","G4",{"$f":"\"\"","v":""},"n / a"]
[null,null,"LRT6 23LM 30K MVOLT G4 90CRI GZ1 NLTAIR2",null,null,"CCT (Required)","27K","27K","27/",null,"CCT (Required)","27K","27K","27/",null,"CCT (Required)","27K","27K","n / a"]
[null,null,"LRT6 P CSS PF WET",null,null,"CCT (Required)","30K","30K","30/",null,"CCT (Required)","30K","30K","30/",null,"CCT (Required)","30K","30K","n / a"]
[null,null,"LRT6 23LM 30K MVOLT G4 90CRI GZ1 NLTAIR2 P CSS PF WET",null,null,"CCT (Required)","35K","35K","35/",null,"CCT (Required)","35K","35K","35/",null,"CCT (Required)","35K","35K","n / a"]
[null,null,null,null,null,"CCT (Required)","40K","40K","40/",null,"CCT (Required)","40K","40K","40/",null,"CCT (Required)","40K","40K","n / a"]
[null,null,null,null,null,"CCT (Required)","50K","50K","50/",null,"CCT (Required)","50K","50K","50/",null,"CCT (Required)","50K","50K","n / a"]
[null,null,null,null,null,"Voltage (Required)","120","120","120",null,"Voltage (Required)","120","120","120",null,"Voltage (Required)","120","120","n / a"]
[null,null,null,null,null,"Voltage (Required)","277","277","277",null,"Voltage (Required)","277","277","277",null,"Voltage (Required)","277","277","n / a"]
[null,null,null,null,null,"Voltage (Required)","347","347","n / a",null,"Voltage (Required)","347","347","n / a",null,"Voltage (Required)","347","347","n / a"]
[null,null,null,null,null,"Voltage (Required)","MVOLT","MVOLT","MVOLT",null,"Voltage (Required)","MVOLT","MVOLT","MVOLT",null,"Voltage (Required)","MVOLT","MVOLT","n / a"]
[null,null,null,null,null,"CRI (Required)","80CRI",{"$f":"\"\"","v":""},{"$f":"\"\"","v":""},null,"CRI (Required)","80CRI",{"$f":"\"\"","v":""},{"$f":"\"\"","v":""},null,"CRI (Required)","80CRI",{"$f":"\"\"","v":""},"n / a"]
[null,null,null,null,null,"CRI (Required)","90CRI","90CRI","90CRI",null,"CRI (Required)","90CRI","90CRI","90CRI",null,"CRI (Required)","90CRI","90CRI","n / a"]
[null,null,null,null,null,"CRI (Required)","97CRI","n / a","n / a",null,"CRI (Required)","97CRI","n / a","n / a",null,"CRI (Required)","97CRI","n / a","n / a"]
[null,null,null,null,null,"Driver (Required)","EDAB","UGZ1","DALI",null,"Driver (Required)","EDAB","UGZ1","DALI",null,"Driver (Required)","EDAB","UGZ1","n / a"]
[null,null,null,null,null,"Driver (Required)","EDXB","n / a","n / a",null,"Driver (Required)","EDXB","n / a","n / a",null,"Driver (Required)","EDXB","n / a","n / a"]
[null,null,null,null,null,"Driver (Required)","EZ10","UGZ","GZ10",null,"Driver (Required)","EZ10","UGZ","GZ10",null,"Driver (Required)","EZ10","UGZ","n / a"]
[null,null,null,null,null,"Driver (Required)","EZ1","UGZ1","EZ1",null,"Driver (Required)","EZ1","UGZ1","EZ1",null,"Driver (Required)","EZ1","UGZ1","n / a"]
[null,null,null,null,null,"Driver (Required)","EZB","n / a","n / a",null,"Driver (Required)","EZB","n / a","n / a",null,"Driver (Required)","EZB","n / a","n / a"]
[null,null,null,null,null,"Driver (Required)","FD","UGZ","n / a",null,"Driver (Required)","FD","UGZ","n / a",null,"Driver (Required)","FD","UGZ","n / a"]
[null,null,null,null,null,"Driver (Required)","ECOD","n / a","n / a",null,"Driver (Required)","ECOD","n / a","n / a",null,"Driver (Required)","ECOD","n / a","n / a"]
[null,null,null,null,null,"Driver (Required)","ZT","UGZ","GZ10",null,"Driver (Required)","ZT","UGZ","GZ10",null,"Driver (Required)","ZT","UGZ","n / a"]
[null,null,null,null,null,"Driver (Required)","GZ1","UGZ1","GZ1",null,"Driver (Required)","GZ1","UGZ1","GZ1",null,"Driver (Required)","GZ1","UGZ1","n / a"]
[null,null,null,null,null,"Fusing Option","F","n / a","SF",null,"Fusing Option","F","n / a","SF",null,"Fusing Option","F","n / a","n / a"]
[null,null,null,null,null,"Territory Option","CP","CP","n / a",null,"Territory Option","CP","CP","n / a",null,"Territory Option","CP","CP","n / a"]
[null,null,null,null,null,"Emergency Battery Pack Option","BR","ELR","n / a",null,"Emergency Battery Pack Option","BR","ELR","n / a",null,"Emergency Battery Pack Option","BR","ELR","n / a"]
[null,null,null,null,null,"Emergency Battery Pack Option","BRT20C","E10WCPR","n / a",null,"Emergency Battery Pack Option","BRT20C","E10WCPR","n / a",null,"Emergency Battery Pack Option","BRT20C","E10WCPR","n / a"]
[null,null,null,null,null,"Emergency Battery Pack Option","HBR","n / a","n / a",null,"Emergency Battery Pack Option","HBR","n / a","n / a",null,"Emergency Battery Pack Option","HBR","n / a","n / a"]
[null,null,null,null,null,"Controls Option","NL","NPS80EZ","n / a",null,"Controls Option","NL","NPS80EZ","n / a",null,"Controls Option","NL","NPS80EZ","n / a"]
[null,null,null,null,null,"Controls Option","NLER","NPS80EZER","n / a",null,"Controls Option","NLER","NPS80EZER","n / a",null,"Controls Option","NLER","NPS80EZER","n / a"]
[null,null,null,null,null,"Controls Option","NLTAIR2","NLTAIR2","NLTAIR2",null,"Controls Option","NLTAIR2","NLTAIR2","NLTAIR2",null,"Controls Option","NLTAIR2","NLTAIR2","n / a"]
[null,null,null,null,null,"Controls Option","NLTAIRER2","NLTAIRER2","NLTAIRER2",null,"Controls Option","NLTAIRER2","NLTAIRER2","NLTAIRER2",null,"Controls Option","NLTAIRER2","NLTAIRER2","n / a"]
[null,null,null,null,null,"Socket Adapter Option","INC","n / a","n / a",null,"Socket Adapter Option","INC","n / a","n / a",null,"Socket Adapter Option","INC","n / a","n / a"]
[null,null,null,null,null,"Atrius Enabled Option","AE2CD","AE2BD","n / a",null,"Atrius Enabled Option","AE2CD","AE2BD","n / a",null,"Atrius Enabled Option","AE2CD","AE2BD","n / a"]
[null,null,null,null,null,"Trim Style (Required)","HM","n / a","n / a",null,"Trim Style (Required)","HM","n / a","n / a",null,"Trim Style (Required)","HM","n / a","n / a"]
[null,null,null,null,null,"Trim Style (Required)","HW","n / a","n / a",null,"Trim Style (Required)","HW","n / a","n / a",null,"Trim Style (Required)","HW","n / a","n / a"]
[null,null,null,null,null,"Trim Style (Required)","HWS","n / a","n / a",null,"Trim Style (Required)","HWS","n / a","n / a",null,"Trim Style (Required)","HWS","n / a","n / a"]
[null,null,null,null,null,"Trim Style (Required)","P",{"$f":"\"\"","v":""},"LR",null,"Trim Style (Required)","P",{"$f":"\"\"","v":""},"LR",null,"Trim Style (Required)","P",{"$f":"\"\"","v":""},"n / a"]
[null,null,null,null,null,"Trim Style (Required)","WS","WW","LRW",null,"Trim Style (Required)","WS","WW","LRW",null,"Trim Style (Required)","WS","WW","n / a"]
[null,null,null,null,null,"Trim Finish (Required)","CD","n / a","AR LD",null,"Trim Finish (Required)","CD","n / a","AR LD",null,"Trim Finish (Required)","CD","n / a","n / a"]
[null,null,null,null,null,"Trim Finish (Required)","CS","n / a","AR LS",null,"Trim Finish (Required)","CS","n / a","AR LS",null,"Trim Finish (Required)","CS","n / a","n / a"]
[null,null,null,null,null,"Trim Finish (Required)","CSS","AR LSS MWD","AR LSS",null,"Trim Finish (Required)","CSS","AR LSS MWD","AR LSS",null,"Trim Finish (Required)","CSS","AR LSS MWD","n / a"]
[null,null,null,null,null,"Trim Finish (Required)","WH","WR","WR",null,"Trim Finish (Required)","WH","WR","WR",null,"Trim Finish (Required)","WH","WR","n / a"]
[null,null,null,null,null,"Trim Option 1","PF","TRW","TRW",null,"Trim Option 1","PF","TRW","TRW",null,"Trim Option 1","PF","TRW","n / a"]
[null,null,null,null,null,"Trim Option 2","WET","WL",{"$f":"\"\"","v":""},null,"Trim Option 2","WET","WL",{"$f":"\"\"","v":""},null,"Trim Option 2","WET","WL","n / a"]